[Event "Titled Tuesday Blitz March 14 Late 2023"]
[White "Mendonca, Leon Luke"]
[Black "Topalov, Aleksandar"]
[WhiteFideId "35028561"]
[BlackFideId "925659"]
[WhiteElo "2464"]
[BlackElo "2151"]
[Result "1-0"]
[Round "02"]
[TimeControl "180+1"]
[Date "2023.03.14"]
[WhiteClock "0:00:16"]
[BlackClock "0:00:04"]

1. e4 {[%clk 0:03:00]}  e6 {[%clk 0:02:54]} 2. d3 {[%clk 0:02:59]}  d5 {[%clk 0:02:54]} 3. Nd2 {[%clk 0:03:00]}  c5 {[%clk 0:02:54]} 4. g3 {[%clk 0:03:00]}  Nc6 {[%clk 0:02:54]} 5. Bg2 {[%clk 0:03:01]}  Nf6 {[%clk 0:02:49]} 6. Ngf3 {[%clk 0:03:00]}  Be7 {[%clk 0:02:49]} 7. O-O {[%clk 0:03:00]}  O-O {[%clk 0:02:49]} 8. Re1 {[%clk 0:03:01]}  b5 {[%clk 0:02:43]} 9. h4 {[%clk 0:02:54]}  a5 {[%clk 0:02:42]} 10. e5 {[%clk 0:02:48]}  Nd7 {[%clk 0:02:42]} 11. Nf1 {[%clk 0:02:48]}  b4 {[%clk 0:02:42]} 12. Bf4 {[%clk 0:02:47]}  Ba6 {[%clk 0:02:42]} 13. N1h2 {[%clk 0:02:47]}  a4 {[%clk 0:02:42]} 14. h5 {[%clk 0:02:45]}  a3 {[%clk 0:02:42]} 15. b3 {[%clk 0:02:44]}  Nd4 {[%clk 0:02:40]} 16. h6 {[%clk 0:02:40]}  g6 {[%clk 0:02:39]} 17. Nxd4 {[%clk 0:02:33]}  cxd4 {[%clk 0:02:39]} 18. Nf3 {[%clk 0:02:33]}  Qb6 {[%clk 0:02:37]} 19. Bg5 {[%clk 0:02:30]}  Bxg5 {[%clk 0:02:30]} 20. Nxg5 {[%clk 0:02:31]}  Rac8 {[%clk 0:02:26]} 21. Qd2 {[%clk 0:02:24]}  Bb7 {[%clk 0:02:19]} 22. Re2 {[%clk 0:02:22]}  Rc3 {[%clk 0:02:12]} 23. Qf4 {[%clk 0:02:18]}  Qc5 {[%clk 0:01:48]} 24. Rc1 {[%clk 0:02:18]}  Ba6 {[%clk 0:01:45]} 25. Rce1 {[%clk 0:01:02]}  Qe7 {[%clk 0:01:27]} 26. Rd2 {[%clk 0:00:57]}  Rfc8 {[%clk 0:01:26]} 27. Ree2 {[%clk 0:00:55]}  Bb7 {[%clk 0:01:22]} 28. Bf3 {[%clk 0:00:53]}  R8c5 {[%clk 0:01:04]} 29. Bg4 {[%clk 0:00:53]}  Nf8 {[%clk 0:01:02]} 30. Nf3 {[%clk 0:00:50]}  Nd7 {[%clk 0:00:38]} 31. Nxd4 {[%clk 0:00:49]}  Ba6 {[%clk 0:00:28]} 32. Nf3 {[%clk 0:00:48]}  Rc8 {[%clk 0:00:25]} 33. Nd4 {[%clk 0:00:43]}  Nc5 {[%clk 0:00:17]} 34. Re3 {[%clk 0:00:41]}  Nd7 {[%clk 0:00:15]} 35. Bh3 {[%clk 0:00:38]}  Nc5 {[%clk 0:00:14]} 36. Ne2 {[%clk 0:00:31]}  Nd7 {[%clk 0:00:13]} 37. Nxc3 {[%clk 0:00:28]}  bxc3 {[%clk 0:00:12]} 38. Rde2 {[%clk 0:00:28]}  Nc5 {[%clk 0:00:11]} 39. Qd4 {[%clk 0:00:27]}  Nd7 {[%clk 0:00:10]} 40. Rf3 {[%clk 0:00:28]}  Qc5 {[%clk 0:00:09]} 41. Rf4 {[%clk 0:00:27]}  Qc7 {[%clk 0:00:06]} 42. Re3 {[%clk 0:00:26]}  Bb7 {[%clk 0:00:06]} 43. Qb4 {[%clk 0:00:25]}  Nxe5 {[%clk 0:00:05]} 44. Rxe5 {[%clk 0:00:20]}  Qxe5 {[%clk 0:00:05]} 45. Qxb7 {[%clk 0:00:20]}  Rf8 {[%clk 0:00:04]} 46. Bf1 {[%clk 0:00:17]}  g5 {[%clk 0:00:04]} 47. Rf3 {[%clk 0:00:16]}  g4 {[%clk 0:00:04]} 48. Rf4 {[%clk 0:00:16]}  Qh5 {[%clk 0:00:04]} 49. Qb4 {[%clk 0:00:16]}  Qxh6 {[%clk 0:00:04]} 50. Rxg4+ {[%clk 0:00:17]}  Kh8 {[%clk 0:00:04]} 51. Qxc3+ {[%clk 0:00:17]}  f6 {[%clk 0:00:05]} 52. Qd4 {[%clk 0:00:17]}  Qh5 {[%clk 0:00:04]} 53. Rf4 {[%clk 0:00:17]}  e5 {[%clk 0:00:03]} 54. Qxd5 {[%clk 0:00:17]}  exf4 {[%clk 0:00:03]} 55. Qxh5 {[%clk 0:00:16]}  fxg3 {[%clk 0:00:04]} 56. fxg3 {[%clk 0:00:16]} 1-0


[Site "https://www.chess.com"]

[Event "Titled Tuesday Blitz March 14 Late 2023"]
[White "Mihajlov, Sebastian"]
[Black "Perez Rodriguez, Jennifer"]
[WhiteFideId "1512110"]
[BlackFideId "3507831"]
[WhiteElo "2464"]
[BlackElo "2170"]
[Result "1-0"]
[Round "02"]
[TimeControl "180+1"]
[Date "2023.03.14"]
[WhiteClock "0:00:29"]
[BlackClock "0:00:19"]

1. e4 {[%clk 0:02:57]}  e5 {[%clk 0:03:00]} 2. Nf3 {[%clk 0:02:54]}  Nc6 {[%clk 0:03:00]} 3. Bc4 {[%clk 0:02:55]}  Bc5 {[%clk 0:03:00]} 4. O-O {[%clk 0:02:49]}  Nf6 {[%clk 0:02:59]} 5. d4 {[%clk 0:02:47]}  Bxd4 {[%clk 0:03:00]} 6. Nxd4 {[%clk 0:02:47]}  Nxd4 {[%clk 0:02:59]} 7. Bg5 {[%clk 0:02:48]}  d6 {[%clk 0:02:57]} 8. f4 {[%clk 0:02:47]}  Qe7 {[%clk 0:02:51]} 9. fxe5 {[%clk 0:02:25]}  dxe5 {[%clk 0:02:50]} 10. c3 {[%clk 0:02:25]}  Ne6 {[%clk 0:02:32]} 11. Bxf6 {[%clk 0:02:23]}  gxf6 {[%clk 0:02:33]} 12. Na3 {[%clk 0:02:22]}  Bd7 {[%clk 0:02:30]} 13. Qd2 {[%clk 0:02:21]}  Rg8 {[%clk 0:02:27]} 14. Qf2 {[%clk 0:02:21]}  Nf4 {[%clk 0:02:26]} 15. Kh1 {[%clk 0:02:16]}  Rxg2 {[%clk 0:02:24]} 16. Qe3 {[%clk 0:02:15]}  Rg5 {[%clk 0:02:10]} 17. Rad1 {[%clk 0:02:08]}  a6 {[%clk 0:02:07]} 18. b4 {[%clk 0:02:00]}  Be6 {[%clk 0:02:03]} 19. Bb3 {[%clk 0:01:49]}  Bxb3 {[%clk 0:02:00]} 20. axb3 {[%clk 0:01:50]}  Qe6 {[%clk 0:01:59]} 21. Nc4 {[%clk 0:01:50]}  Kf8 {[%clk 0:01:42]} 22. Rg1 {[%clk 0:01:44]}  Kg8 {[%clk 0:01:36]} 23. Qc5 {[%clk 0:01:40]}  Qh3 {[%clk 0:01:28]} 24. Qe3 {[%clk 0:01:31]}  Qxe3 {[%clk 0:01:18]} 25. Nxe3 {[%clk 0:01:32]}  Rxg1+ {[%clk 0:01:10]} 26. Rxg1+ {[%clk 0:01:21]}  Kf8 {[%clk 0:01:10]} 27. Rd1 {[%clk 0:01:12]}  Ke8 {[%clk 0:00:57]} 28. Nf5 {[%clk 0:01:11]}  Ne6 {[%clk 0:00:53]} 29. Kg2 {[%clk 0:01:04]}  Rd8 {[%clk 0:00:51]} 30. Rxd8+ {[%clk 0:01:04]}  Kxd8 {[%clk 0:00:50]} 31. Kf3 {[%clk 0:01:05]}  Kd7 {[%clk 0:00:49]} 32. Ne3 {[%clk 0:01:04]}  c6 {[%clk 0:00:48]} 33. Ng4 {[%clk 0:01:02]}  Ke7 {[%clk 0:00:47]} 34. Ne3 {[%clk 0:01:03]}  Nc7 {[%clk 0:00:45]} 35. c4 {[%clk 0:01:00]}  Ne6 {[%clk 0:00:45]} 36. Nf5+ {[%clk 0:00:57]}  Kd7 {[%clk 0:00:44]} 37. Ke3 {[%clk 0:00:58]}  b6 {[%clk 0:00:44]} 38. Kd3 {[%clk 0:00:54]}  Nf4+ {[%clk 0:00:42]} 39. Kc3 {[%clk 0:00:53]}  Nh3 {[%clk 0:00:39]} 40. Kd2 {[%clk 0:00:47]}  Ng5 {[%clk 0:00:38]} 41. Ke3 {[%clk 0:00:47]}  Ne6 {[%clk 0:00:38]} 42. h4 {[%clk 0:00:46]}  c5 {[%clk 0:00:39]} 43. bxc5 {[%clk 0:00:44]}  bxc5 {[%clk 0:00:39]} 44. Nh6 {[%clk 0:00:42]}  Nd4 {[%clk 0:00:35]} 45. Nxf7 {[%clk 0:00:41]}  Nxb3 {[%clk 0:00:35]} 46. Nh6 {[%clk 0:00:40]}  a5 {[%clk 0:00:35]} 47. Kd3 {[%clk 0:00:40]}  a4 {[%clk 0:00:36]} 48. Kc3 {[%clk 0:00:40]}  Nd4 {[%clk 0:00:36]} 49. Kb2 {[%clk 0:00:41]}  Ne2 {[%clk 0:00:30]} 50. Nf5 {[%clk 0:00:38]}  Ke6 {[%clk 0:00:28]} 51. h5 {[%clk 0:00:32]}  Nf4 {[%clk 0:00:26]} 52. h6 {[%clk 0:00:32]}  Nd3+ {[%clk 0:00:25]} 53. Ka3 {[%clk 0:00:32]}  Nf2 {[%clk 0:00:23]} 54. Ng3 {[%clk 0:00:32]}  f5 {[%clk 0:00:20]} 55. exf5+ {[%clk 0:00:31]}  Kf6 {[%clk 0:00:21]} 56. Kxa4 {[%clk 0:00:32]}  e4 {[%clk 0:00:21]} 57. Kb5 {[%clk 0:00:32]}  e3 {[%clk 0:00:22]} 58. Kxc5 {[%clk 0:00:32]}  Ne4+ {[%clk 0:00:19]} 59. Nxe4+ {[%clk 0:00:32]}  Ke5 {[%clk 0:00:19]} 60. Nc3 {[%clk 0:00:29]} 1-0


[Site "https://www.chess.com"]

[Event "Titled Tuesday Blitz March 14 Late 2023"]
[White "Movahed, Sina"]
[Black "Fernandez Siles, Luis"]
[WhiteFideId "42520835"]
[BlackFideId "2209420"]
[WhiteElo "2225"]
[BlackElo "2186"]
[Result "1-0"]
[Round "02"]
[TimeControl "180+1"]
[Date "2023.03.14"]
[WhiteClock "0:00:35"]
[BlackClock "0:00:14"]

1. e4 {[%clk 0:02:58]}  c5 {[%clk 0:02:59]} 2. Nf3 {[%clk 0:02:57]}  Nc6 {[%clk 0:02:59]} 3. Bb5 {[%clk 0:02:56]}  g6 {[%clk 0:02:59]} 4. O-O {[%clk 0:02:53]}  Bg7 {[%clk 0:02:59]} 5. c3 {[%clk 0:02:50]}  Nf6 {[%clk 0:02:57]} 6. Re1 {[%clk 0:02:49]}  O-O {[%clk 0:02:56]} 7. h3 {[%clk 0:02:50]}  e5 {[%clk 0:02:48]} 8. Bxc6 {[%clk 0:02:46]}  dxc6 {[%clk 0:02:46]} 9. Nxe5 {[%clk 0:02:41]}  Re8 {[%clk 0:02:33]} 10. d4 {[%clk 0:02:39]}  cxd4 {[%clk 0:02:31]} 11. cxd4 {[%clk 0:02:37]}  c5 {[%clk 0:02:31]} 12. Qb3 {[%clk 0:01:59]}  Be6 {[%clk 0:01:58]} 13. d5 {[%clk 0:01:56]}  Bc8 {[%clk 0:01:53]} 14. f4 {[%clk 0:01:49]}  g5 {[%clk 0:01:29]} 15. Nc3 {[%clk 0:01:20]}  gxf4 {[%clk 0:01:27]} 16. Nf3 {[%clk 0:01:21]}  Nh5 {[%clk 0:01:07]} 17. e5 {[%clk 0:01:16]}  c4 {[%clk 0:00:56]} 18. Qxc4 {[%clk 0:01:10]}  Qb6+ {[%clk 0:00:56]} 19. Kh2 {[%clk 0:00:56]}  Qf2 {[%clk 0:00:31]} 20. Ne4 {[%clk 0:00:51]}  Qb6 {[%clk 0:00:19]} 21. Nd6 {[%clk 0:00:47]}  Bxh3 {[%clk 0:00:17]} 22. Kxh3 {[%clk 0:00:36]}  Qf2 {[%clk 0:00:14]} 23. Ne4 {[%clk 0:00:35]} 1-0


[Site "https://www.chess.com"]

[Event "Titled Tuesday Blitz March 14 Late 2023"]
[White "Nazari, Arad"]
[Black "Stelmaszyk, Nico"]
[WhiteFideId "12577324"]
[BlackFideId "16200462"]
[WhiteElo "2313"]
[BlackElo "2255"]
[Result "1-0"]
[Round "02"]
[TimeControl "180+1"]
[Date "2023.03.14"]
[WhiteClock "0:01:48"]
[BlackClock "0:00:09"]

1. e4 {[%clk 0:03:00]}  c5 {[%clk 0:02:57]} 2. Nf3 {[%clk 0:03:01]}  Nc6 {[%clk 0:02:57]} 3. Bb5 {[%clk 0:03:01]}  g6 {[%clk 0:02:55]} 4. Bxc6 {[%clk 0:03:01]}  dxc6 {[%clk 0:02:56]} 5. d3 {[%clk 0:03:02]}  Bg7 {[%clk 0:02:56]} 6. h3 {[%clk 0:03:02]}  e5 {[%clk 0:02:57]} 7. Be3 {[%clk 0:03:03]}  Nf6 {[%clk 0:02:57]} 8. Bxc5 {[%clk 0:03:00]}  Nd7 {[%clk 0:02:54]} 9. Be3 {[%clk 0:03:00]}  O-O {[%clk 0:02:54]} 10. Qd2 {[%clk 0:03:01]}  c5 {[%clk 0:02:53]} 11. Bh6 {[%clk 0:03:00]}  Qb6 {[%clk 0:02:51]} 12. Bxg7 {[%clk 0:02:55]}  Kxg7 {[%clk 0:02:52]} 13. b3 {[%clk 0:02:53]}  Qe6 {[%clk 0:00:11]} 14. Nc3 {[%clk 0:02:50]}  b6 {[%clk 0:00:11]} 15. Ng5 {[%clk 0:02:46]}  Qd6 {[%clk 0:00:10]} 16. h4 {[%clk 0:02:45]}  h6 {[%clk 0:00:10]} 17. Nf3 {[%clk 0:02:44]}  Bb7 {[%clk 0:00:11]} 18. h5 {[%clk 0:02:28]}  g5 {[%clk 0:00:10]} 19. Ne2 {[%clk 0:02:28]}  Nf6 {[%clk 0:00:10]} 20. Ng3 {[%clk 0:02:28]}  Kh7 {[%clk 0:00:11]} 21. Nf5 {[%clk 0:02:17]}  Qe6 {[%clk 0:00:11]} 22. Nxh6 {[%clk 0:02:06]}  Kxh6 {[%clk 0:00:10]} 23. Nxg5 {[%clk 0:02:06]}  Qg4 {[%clk 0:00:09]} 24. Nxf7+ {[%clk 0:01:54]}  Kg7 {[%clk 0:00:10]} 25. Nxe5 {[%clk 0:01:55]}  Qxg2 {[%clk 0:00:10]} 26. O-O-O {[%clk 0:01:54]}  Kh7 {[%clk 0:00:08]} 27. Rdg1 {[%clk 0:01:50]}  Nxe4 {[%clk 0:00:09]} 28. dxe4 {[%clk 0:01:49]}  Qxe4 {[%clk 0:00:10]} 29. Qd7+ {[%clk 0:01:48]}  Rf7 {[%clk 0:00:09]} 30. Qxf7+ {[%clk 0:01:48]} 1-0


[Site "https://www.chess.com"]

[Event "Titled Tuesday Blitz March 14 Late 2023"]
[White "Oro, Faustino"]
[Black "Harish, Neeraj"]
[WhiteFideId "20000197"]
[BlackFideId "30958130"]
[WhiteElo "1984"]
[BlackElo "1963"]
[Result "1-0"]
[Round "02"]
[TimeControl "180+1"]
[Date "2023.03.14"]
[WhiteClock "0:00:20"]
[BlackClock "0:00:03"]

1. Nf3 {[%clk 0:02:59]}  Nf6 {[%clk 0:02:58]} 2. e3 {[%clk 0:02:59]}  d5 {[%clk 0:02:58]} 3. b3 {[%clk 0:02:57]}  e6 {[%clk 0:02:57]} 4. Bb2 {[%clk 0:02:57]}  Be7 {[%clk 0:02:57]} 5. Be2 {[%clk 0:02:57]}  O-O {[%clk 0:02:57]} 6. O-O {[%clk 0:02:57]}  c5 {[%clk 0:02:57]} 7. c4 {[%clk 0:02:57]}  Nc6 {[%clk 0:02:57]} 8. cxd5 {[%clk 0:02:57]}  exd5 {[%clk 0:02:57]} 9. d4 {[%clk 0:02:57]}  Bf5 {[%clk 0:02:47]} 10. Nbd2 {[%clk 0:02:48]}  cxd4 {[%clk 0:02:31]} 11. Nxd4 {[%clk 0:02:48]}  Nxd4 {[%clk 0:02:20]} 12. Bxd4 {[%clk 0:02:47]}  Rc8 {[%clk 0:02:14]} 13. Nf3 {[%clk 0:02:30]}  Ne4 {[%clk 0:02:03]} 14. Bd3 {[%clk 0:02:14]}  Bg4 {[%clk 0:01:45]} 15. h3 {[%clk 0:01:35]}  Bh5 {[%clk 0:01:35]} 16. Be2 {[%clk 0:01:32]}  Bxf3 {[%clk 0:01:07]} 17. Bxf3 {[%clk 0:01:32]}  Bf6 {[%clk 0:01:06]} 18. Qd3 {[%clk 0:01:27]}  Bxd4 {[%clk 0:00:57]} 19. Qxd4 {[%clk 0:01:28]}  Nf6 {[%clk 0:00:55]} 20. Qxa7 {[%clk 0:01:27]}  Qc7 {[%clk 0:00:47]} 21. Qd4 {[%clk 0:01:20]}  Rfd8 {[%clk 0:00:46]} 22. Rfd1 {[%clk 0:01:09]}  Qa5 {[%clk 0:00:37]} 23. Qd2 {[%clk 0:00:52]}  Qa7 {[%clk 0:00:19]} 24. Rac1 {[%clk 0:00:43]}  Rxc1 {[%clk 0:00:17]} 25. Rxc1 {[%clk 0:00:44]}  d4 {[%clk 0:00:16]} 26. exd4 {[%clk 0:00:41]}  h6 {[%clk 0:00:15]} 27. d5 {[%clk 0:00:40]}  Qa3 {[%clk 0:00:10]} 28. Rd1 {[%clk 0:00:39]}  Qd6 {[%clk 0:00:10]} 29. g3 {[%clk 0:00:36]}  Ne8 {[%clk 0:00:11]} 30. Kg2 {[%clk 0:00:33]}  Qf6 {[%clk 0:00:10]} 31. Qa5 {[%clk 0:00:29]}  Nd6 {[%clk 0:00:09]} 32. Qb6 {[%clk 0:00:26]}  Ra8 {[%clk 0:00:08]} 33. a4 {[%clk 0:00:25]}  Ra6 {[%clk 0:00:04]} 34. Qc7 {[%clk 0:00:25]}  Ra8 {[%clk 0:00:02]} 35. Re1 {[%clk 0:00:23]}  Qd8 {[%clk 0:00:01]} 36. Qxd8+ {[%clk 0:00:22]}  Rxd8 {[%clk 0:00:02]} 37. Rc1 {[%clk 0:00:22]}  Kf8 {[%clk 0:00:02]} 38. b4 {[%clk 0:00:22]}  Ke8 {[%clk 0:00:03]} 39. Rc7 {[%clk 0:00:21]}  Ra8 {[%clk 0:00:03]} 40. a5 {[%clk 0:00:20]}  Nb5 {[%clk 0:00:03]} 41. Rxb7 {[%clk 0:00:20]} 1-0


[Site "https://www.chess.com"]

[Event "Titled Tuesday Blitz March 14 Late 2023"]
[White "Petukhov, Dmitry"]
[Black "Tsyhanchuk, Stanislav"]
[WhiteFideId "4142748"]
[BlackFideId "13505130"]
[WhiteElo "2311"]
[BlackElo "2173"]
[Result "1-0"]
[Round "02"]
[TimeControl "180+1"]
[Date "2023.03.14"]
[WhiteClock "0:00:18"]
[BlackClock "0:00:03"]

1. e4 {[%clk 0:02:59]}  c5 {[%clk 0:03:00]} 2. c3 {[%clk 0:02:59]}  e6 {[%clk 0:02:59]} 3. d4 {[%clk 0:02:52]}  d5 {[%clk 0:02:57]} 4. e5 {[%clk 0:02:50]}  Nc6 {[%clk 0:02:57]} 5. Nf3 {[%clk 0:02:50]}  Qb6 {[%clk 0:02:57]} 6. a3 {[%clk 0:02:50]}  c4 {[%clk 0:02:45]} 7. Nbd2 {[%clk 0:02:45]}  Nh6 {[%clk 0:02:44]} 8. Be2 {[%clk 0:02:28]}  Nf5 {[%clk 0:02:43]} 9. O-O {[%clk 0:02:26]}  h5 {[%clk 0:02:42]} 10. Re1 {[%clk 0:02:21]}  Bd7 {[%clk 0:02:36]} 11. Nf1 {[%clk 0:02:19]}  h4 {[%clk 0:02:31]} 12. h3 {[%clk 0:02:17]}  Na5 {[%clk 0:02:30]} 13. Ne3 {[%clk 0:02:10]}  Nb3 {[%clk 0:02:27]} 14. Rb1 {[%clk 0:02:08]}  Nxe3 {[%clk 0:02:18]} 15. Bxe3 {[%clk 0:02:07]}  Be7 {[%clk 0:02:18]} 16. Nh2 {[%clk 0:02:03]}  O-O-O {[%clk 0:02:16]} 17. f4 {[%clk 0:02:03]}  Ba4 {[%clk 0:02:12]} 18. Rf1 {[%clk 0:01:51]}  g6 {[%clk 0:02:03]} 19. Qe1 {[%clk 0:01:48]}  Rdg8 {[%clk 0:02:00]} 20. Nf3 {[%clk 0:01:48]}  Qd8 {[%clk 0:01:59]} 21. Ng5 {[%clk 0:01:45]}  Rg7 {[%clk 0:01:30]} 22. Bg4 {[%clk 0:01:44]}  Bd7 {[%clk 0:01:26]} 23. Qf2 {[%clk 0:01:25]}  Kb8 {[%clk 0:01:21]} 24. Rbe1 {[%clk 0:01:24]}  a5 {[%clk 0:01:15]} 25. Re2 {[%clk 0:01:24]}  a4 {[%clk 0:01:15]} 26. Qe1 {[%clk 0:01:13]}  Na5 {[%clk 0:01:10]} 27. Rf3 {[%clk 0:00:58]}  b5 {[%clk 0:01:06]} 28. Bf2 {[%clk 0:00:58]}  Bxg5 {[%clk 0:01:05]} 29. fxg5 {[%clk 0:00:58]}  Qxg5 {[%clk 0:01:04]} 30. Rf6 {[%clk 0:00:59]}  Qh6 {[%clk 0:00:53]} 31. Be3 {[%clk 0:00:58]}  Qh7 {[%clk 0:00:53]} 32. Ref2 {[%clk 0:00:58]}  Nc6 {[%clk 0:00:51]} 33. Qf1 {[%clk 0:00:56]}  Nd8 {[%clk 0:00:44]} 34. Bg5 {[%clk 0:00:56]}  Kc7 {[%clk 0:00:41]} 35. R6f3 {[%clk 0:00:55]}  Rf8 {[%clk 0:00:28]} 36. Rf4 {[%clk 0:00:46]}  Nc6 {[%clk 0:00:11]} 37. Bd1 {[%clk 0:00:43]}  Qg8 {[%clk 0:00:07]} 38. Rxh4 {[%clk 0:00:41]}  Rh7 {[%clk 0:00:07]} 39. Rhf4 {[%clk 0:00:41]}  Bc8 {[%clk 0:00:04]} 40. R2f3 {[%clk 0:00:40]}  Kd7 {[%clk 0:00:04]} 41. Bc2 {[%clk 0:00:39]}  Ne7 {[%clk 0:00:04]} 42. Qd1 {[%clk 0:00:38]}  Nf5 {[%clk 0:00:03]} 43. Bxa4 {[%clk 0:00:37]}  bxa4 {[%clk 0:00:02]} 44. Qxa4+ {[%clk 0:00:38]}  Kc7 {[%clk 0:00:01]} 45. Qa5+ {[%clk 0:00:38]}  Kb8 {[%clk 0:00:02]} 46. b3 {[%clk 0:00:27]}  Bb7 {[%clk 0:00:03]} 47. bxc4 {[%clk 0:00:27]}  dxc4 {[%clk 0:00:04]} 48. Rf2 {[%clk 0:00:20]}  Rh5 {[%clk 0:00:04]} 49. Rxf5 {[%clk 0:00:18]}  gxf5 {[%clk 0:00:03]} 50. Be7 {[%clk 0:00:19]}  Rc8 {[%clk 0:00:03]} 51. Bd6+ {[%clk 0:00:19]}  Rc7 {[%clk 0:00:03]} 52. Qxc7+ {[%clk 0:00:17]}  Ka7 {[%clk 0:00:03]} 53. Bc5+ {[%clk 0:00:17]}  Ka8 {[%clk 0:00:02]} 54. Qa5+ {[%clk 0:00:17]}  Kb8 {[%clk 0:00:03]} 55. Bd6+ {[%clk 0:00:17]}  Kc8 {[%clk 0:00:03]} 56. Qc7# {[%clk 0:00:18]} 1-0


[Site "https://www.chess.com"]

[Event "Titled Tuesday Blitz March 14 Late 2023"]
[White "Pino Perez, Lazaro"]
[Black "Sjugirov, Sanan"]
[WhiteFideId "3517055"]
[BlackFideId "4189302"]
[WhiteElo "2170"]
[BlackElo "2569"]
[Result "0-1"]
[Round "02"]
[TimeControl "180+1"]
[Date "2023.03.14"]
[WhiteClock "0:00:03"]
[BlackClock "0:00:07"]

1. d4 {[%clk 0:03:00]}  Nf6 {[%clk 0:03:00]} 2. Bf4 {[%clk 0:03:00]}  g6 {[%clk 0:03:00]} 3. Nc3 {[%clk 0:02:59]}  d5 {[%clk 0:03:00]} 4. e3 {[%clk 0:02:59]}  Bg7 {[%clk 0:02:59]} 5. h4 {[%clk 0:02:59]}  h5 {[%clk 0:02:58]} 6. Nf3 {[%clk 0:02:58]}  Bg4 {[%clk 0:02:58]} 7. Qd2 {[%clk 0:02:57]}  Bxf3 {[%clk 0:02:57]} 8. gxf3 {[%clk 0:02:58]}  c6 {[%clk 0:02:55]} 9. e4 {[%clk 0:02:57]}  e6 {[%clk 0:02:52]} 10. O-O-O {[%clk 0:02:54]}  Nbd7 {[%clk 0:02:51]} 11. Rg1 {[%clk 0:02:25]}  b5 {[%clk 0:02:39]} 12. exd5 {[%clk 0:00:56]}  Nxd5 {[%clk 0:02:20]} 13. Nxd5 {[%clk 0:00:55]}  cxd5 {[%clk 0:02:20]} 14. Bxb5 {[%clk 0:00:45]}  O-O {[%clk 0:02:21]} 15. Bh6 {[%clk 0:00:34]}  Nf6 {[%clk 0:02:16]} 16. Bd3 {[%clk 0:00:26]}  Ne8 {[%clk 0:02:04]} 17. Qf4 {[%clk 0:00:18]}  Qd6 {[%clk 0:01:39]} 18. Qg5 {[%clk 0:00:12]}  Rb8 {[%clk 0:01:20]} 19. Bxg6 {[%clk 0:00:09]}  fxg6 {[%clk 0:01:20]} 20. Qxg6 {[%clk 0:00:09]}  Rf7 {[%clk 0:01:05]} 21. Rg5 {[%clk 0:00:07]}  Qb4 {[%clk 0:01:01]} 22. b3 {[%clk 0:00:06]}  Qc3 {[%clk 0:00:42]} 23. Rdg1 {[%clk 0:00:05]}  Qa1+ {[%clk 0:00:41]} 24. Kd2 {[%clk 0:00:06]}  Qxd4+ {[%clk 0:00:41]} 25. Kc1 {[%clk 0:00:07]}  Rc8 {[%clk 0:00:17]} 26. Bxg7 {[%clk 0:00:04]}  Nxg7 {[%clk 0:00:17]} 27. Qxe6 {[%clk 0:00:04]}  Qa1+ {[%clk 0:00:16]} 28. Kd2 {[%clk 0:00:03]}  Qc3+ {[%clk 0:00:17]} 29. Ke2 {[%clk 0:00:03]}  Qxc2+ {[%clk 0:00:11]} 30. Kf1 {[%clk 0:00:04]}  Qc1+ {[%clk 0:00:06]} 31. Kg2 {[%clk 0:00:04]}  Qxg5+ {[%clk 0:00:07]} 32. hxg5 {[%clk 0:00:03]}  Nxe6 {[%clk 0:00:07]} 0-1


[Site "https://www.chess.com"]

[Event "Titled Tuesday Blitz March 14 Late 2023"]
[White "Quispe Santacruz, Javier"]
[Black "Yeritsyan, Hayk"]
[WhiteFideId "3800920"]
[BlackFideId "13307320"]
[WhiteElo "1875"]
[BlackElo "2448"]
[Result "1-0"]
[Round "02"]
[TimeControl "180+1"]
[Date "2023.03.14"]
[WhiteClock "0:00:06"]
[BlackClock "0:00:30"]

1. d4 {[%clk 0:02:50]}  d5 {[%clk 0:02:53]} 2. c4 {[%clk 0:02:49]}  c6 {[%clk 0:02:53]} 3. Nf3 {[%clk 0:02:49]}  Nf6 {[%clk 0:02:52]} 4. e3 {[%clk 0:02:48]}  e6 {[%clk 0:02:52]} 5. Nc3 {[%clk 0:02:47]}  Bd6 {[%clk 0:02:52]} 6. Qc2 {[%clk 0:02:47]}  Nbd7 {[%clk 0:02:52]} 7. Bd3 {[%clk 0:02:46]}  Qe7 {[%clk 0:02:52]} 8. e4 {[%clk 0:02:46]}  dxc4 {[%clk 0:02:52]} 9. Bxc4 {[%clk 0:02:45]}  e5 {[%clk 0:02:53]} 10. dxe5 {[%clk 0:02:42]}  Nxe5 {[%clk 0:02:54]} 11. Nxe5 {[%clk 0:02:42]}  Bxe5 {[%clk 0:02:44]} 12. O-O {[%clk 0:02:32]}  O-O {[%clk 0:02:44]} 13. Re1 {[%clk 0:02:29]}  Bxh2+ {[%clk 0:02:11]} 14. Kxh2 {[%clk 0:02:27]}  Ng4+ {[%clk 0:02:12]} 15. Kg3 {[%clk 0:02:02]}  Qe5+ {[%clk 0:01:52]} 16. Bf4 {[%clk 0:01:44]}  Qc5 {[%clk 0:01:46]} 17. Bd3 {[%clk 0:01:21]}  g5 {[%clk 0:01:39]} 18. Bc7 {[%clk 0:00:57]}  Qe7 {[%clk 0:01:32]} 19. Nd5 {[%clk 0:00:21]}  cxd5 {[%clk 0:01:25]} 20. exd5 {[%clk 0:00:21]}  Qf6 {[%clk 0:01:19]} 21. Bxh7+ {[%clk 0:00:20]}  Kg7 {[%clk 0:01:18]} 22. Rh1 {[%clk 0:00:12]}  Bd7 {[%clk 0:01:02]} 23. Bg8 {[%clk 0:00:12]}  Rxg8 {[%clk 0:00:58]} 24. Rh7+ {[%clk 0:00:07]}  Kf8 {[%clk 0:00:57]} 25. Qc5+ {[%clk 0:00:07]}  Ke8 {[%clk 0:00:55]} 26. Re1+ {[%clk 0:00:07]}  Be6 {[%clk 0:00:37]} 27. Rxe6+ {[%clk 0:00:06]}  fxe6 {[%clk 0:00:36]} 28. Qb5+ {[%clk 0:00:05]}  Kf8 {[%clk 0:00:32]} 29. Bd6+ {[%clk 0:00:06]}  Qe7 {[%clk 0:00:30]} 30. Bxe7# {[%clk 0:00:06]} 1-0


[Site "https://www.chess.com"]